fUSD/lending_fUSD_20250930
["ID","MTS","AMOUNT","RATE_DAILY","PERIOD"]
[388526368,1759233033950,-3054.15,0.00019178,2]
[388526369,1759233033959,-500.0,0.00019178,2]
[388526370,1759233033968,-500.0,0.00019178,2]
[388526371,1759233033979,-579.29,0.00019178,2]
[388526372,1759233033988,-555.15,0.00019178,2]
[388526373,1759233033998,-500.0,0.00019178,2]
[388526374,1759233034007,-500.0,0.00019178,2]
[388526375,1759233034017,-500.0,0.00019178,2]
[388526376,1759233034026,-500.0,0.00019178,2]
[388526377,1759233034036,-500.0,0.00019178,2]
[388526378,1759233034046,-372.29068639,0.00019178,2]
[388526379,1759233034055,-300.0,0.00019178,2]
[388526380,1759233034065,-556.19,0.00019178,2]
[388526381,1759233034075,-500.0,0.00019178,2]
[388526382,1759233034084,-500.0,0.00019178,2]
[388526383,1759233034094,-500.0,0.00019178,2]
[388526384,1759233034104,-500.0,0.00019178,2]
[388526385,1759233034113,-500.0,0.00019178,2]
[388526386,1759233034123,-923.31,0.00019178,2]
[388526387,1759233034132,-588.96,0.00019178,2]
[388526388,1759233034142,-402.32098424,0.00019178,2]
[388526389,1759233034152,-500.0,0.00019178,2]
[388526390,1759233034161,-500.0,0.00019178,2]
[388526391,1759233034171,-662.41,0.00019178,2]
[388526392,1759233034181,-500.0,0.00019178,2]
[388526393,1759233034190,-2638.52,0.00019178,2]
[388526394,1759233034200,-500.0,0.00019178,2]
[388526395,1759233034209,-500.0,0.00019178,2]
[388526396,1759233034218,-1218.98,0.00019178,2]
[388526397,1759233034227,-500.0,0.00019178,2]
[388526398,1759233034236,-500.0,0.00019178,2]
[388526399,1759233034246,-500.0,0.00019178,2]
[388526400,1759233034255,-500.0,0.00019178,2]
[388526401,1759233034264,-500.0,0.00019178,2]
[388526402,1759233034273,-500.0,0.00019178,2]
[388526403,1759233034284,-500.0,0.00019178,2]
[388526404,1759233034294,-500.0,0.00019178,2]
[388526405,1759233034304,-665.87,0.00019178,2]
[388526406,1759233034314,-500.0,0.00019178,2]
[388526407,1759233034324,-771.37,0.00019178,2]
[388526408,1759233034334,-500.0,0.00019178,2]
[388526409,1759233034344,-500.0,0.00019178,2]
[388526410,1759233034352,-500.0,0.00019178,2]
[388526411,1759233034361,-500.0,0.00019178,2]
[388526412,1759233034372,-1345.84,0.00019178,2]
[388526413,1759233034382,-500.0,0.00019178,2]
[388526414,1759233034391,-500.0,0.00019178,2]
[388526415,1759233034400,-500.0,0.00019178,2]
[388526416,1759233034410,-500.0,0.00019178,2]
[388526417,1759233034420,-500.0,0.00019178,2]
[388526418,1759233034430,-1059.96,0.00019178,2]
[388526419,1759233034441,-500.0,0.00019178,2]
[388526420,1759233034451,-500.0,0.00019178,2]
[388526421,1759233034462,-500.0,0.00019178,2]
[388526422,1759233034470,-500.0,0.00019178,2]
[388526423,1759233034479,-536.11,0.00019178,2]
[388526424,1759233034488,-500.0,0.00019178,2]
[388526425,1759233034498,-500.0,0.00019178,2]
[388526426,1759233034508,-739.85,0.00019178,2]
[388526427,1759233034517,-500.0,0.00019178,2]
[388526428,1759233034528,-385.33121926,0.00019178,2]
[388526429,1759233034538,-500.0,0.00019178,2]
[388526430,1759233034548,-500.0,0.00019178,2]
[388526431,1759233034558,-500.0,0.00019178,2]
[388526432,1759233034568,-500.0,0.00019178,2]
[388526433,1759233034578,-500.0,0.00019178,2]
[388526434,1759233034587,-500.0,0.00019178,2]
[388526435,1759233034597,-500.0,0.00019178,2]
[388526436,1759233034606,-682.01,0.00019178,2]
[388526437,1759233034616,-1284.53,0.00019178,2]
[388526438,1759233034625,-401.1761003,0.00019178,2]
[388526439,1759233034634,-770.98,0.00019178,2]
[388526440,1759233034643,-765.91,0.00019178,2]
[388526441,1759233034652,-500.0,0.00019178,2]
[388526442,1759233034661,-500.0,0.00019178,2]
[388526443,1759233034670,-697.26,0.00019178,2]
[388526444,1759233034679,-500.0,0.00019178,2]
[388526445,1759233034689,-502.82,0.00019178,2]
[388526446,1759233034699,-500.0,0.00019178,2]
[388526447,1759233034709,-500.0,0.00019178,2]
[388526448,1759233034719,-746.05,0.00019178,2]
[388526449,1759233034728,-500.0,0.00019178,2]
[388526450,1759233034738,-447.81530012,0.00019178,2]
[388526451,1759233034761,-52.18469988,0.00019178,2]
[388526452,1759233034774,-500.0,0.00019178,2]
[388526453,1759233034786,-1447.66,0.00019178,2]
[388526454,1759233034795,-500.0,0.00019178,2]
[388526455,1759233034807,-500.0,0.00019178,2]
[388526456,1759233034817,-500.0,0.00019178,2]
[388526457,1759233034826,-2818.98,0.00019178,2]
[388526458,1759233034836,-500.0,0.00019178,2]
[388526459,1759233034853,-500.0,0.00019178,2]
[388526460,1759233034863,-500.0,0.00019178,2]
[388526461,1759233034872,-500.0,0.00019178,2]
[388526462,1759233034882,-500.0,0.00019178,2]
[388526463,1759233034891,-500.0,0.00019178,2]
[388526464,1759233034901,-500.0,0.00019178,2]
[388526465,1759233034911,-1309.89,0.00019178,2]
[388526466,1759233034920,-500.0,0.00019178,2]
[388526467,1759233034930,-500.0,0.00019178,2]
[388526468,1759233034940,-500.0,0.00019178,2]
[388526469,1759233034949,-586.15,0.00019178,2]
[388526470,1759233034958,-590.29,0.00019178,2]
[388526471,1759233034968,-500.0,0.00019178,2]
[388526472,1759233034977,-500.0,0.00019178,2]
[388526473,1759233034987,-541.79,0.00019178,2]
[388526474,1759233034997,-292.84669653,0.00019178,2]
[388526475,1759233035059,-207.15330347,0.00019178,2]
[388526476,1759233035068,-238.80162216,0.00019178,2]
[388526477,1759233035078,-1289.86,0.00019178,2]
[388526478,1759233035088,-868.49,0.00019178,2]
[388526479,1759233035098,-500.0,0.00019178,2]
[388526480,1759233035107,-500.0,0.00019178,2]
[388526481,1759233035117,-500.0,0.00019178,2]
[388526482,1759233035126,-55.28977273,0.00019178,2]
[388526483,1759233035149,-444.71022727,0.00019178,2]
[388526484,1759233035159,-500.0,0.00019178,2]
[388526485,1759233035169,-575.52,0.00019178,2]
[388526486,1759233035179,-500.0,0.00019178,2]
[388526487,1759233035188,-500.0,0.00019178,2]
[388526488,1759233035197,-170.72048095,0.00019178,2]
[388526489,1759233035210,-400.0,0.00019178,2]
[388526490,1759233035227,-838.95951905,0.00019178,2]
[388526491,1759233035237,-511.64,0.00019178,2]
[388526492,1759233035248,-534.04,0.00019178,2]
[388526493,1759233035258,-500.0,0.00019178,2]
[388526494,1759233035268,-449.24779077,0.00019178,2]
[388526503,1759233039421,-175.8654414,0.00016841,2]
[388526504,1759233039432,-500.0,0.00017469,2]
[388526505,1759233039442,-174.36074767,0.00017469,2]
[388526506,1759233039452,-309.85161602,0.00017469,2]
[388526507,1759233039461,-500.0,0.00017469,2]
[388526508,1759233039471,-307.8989834,0.00017469,2]
[388526509,1759233039481,-204.24526275,0.00019078,2]
[388526510,1759233039490,-50.75220923,0.00019178,2]
[388526511,1759233039500,-500.0,0.00019178,2]
[388526512,1759233039511,-1273.02,0.00019178,2]
[388526513,1759233039522,-500.0,0.00019178,2]
[388526514,1759233039532,-98.10573957,0.00019178,2]
[388526515,1759233039551,-401.89426043,0.00019178,2]
[388526516,1759233039566,-500.0,0.00019178,2]
[388526517,1759233039577,-500.0,0.00019178,2]
[388526518,1759233039587,-758.14,0.00019178,2]
[388526519,1759233039598,-500.0,0.00019178,2]
[388526520,1759233039610,-682.74,0.00019178,2]
[388526521,1759233039621,-1404.67,0.00019178,2]
[388526522,1759233039631,-2396.1,0.00019178,2]
[388526523,1759233039642,-500.0,0.00019178,2]
[388526524,1759233039652,-500.0,0.00019178,2]
[388526525,1759233039662,-500.0,0.00019178,2]
[388526526,1759233039672,-2312.72,0.00019178,2]
[388526527,1759233039682,-500.0,0.00019178,2]
[388526528,1759233039692,-500.0,0.00019178,2]
[388526529,1759233039703,-500.0,0.00019178,2]
[388526530,1759233039713,-614.08,0.00019178,2]
[388526531,1759233039723,-500.0,0.00019178,2]
[388526532,1759233039734,-724.17,0.00019178,2]
[388526533,1759233039744,-500.0,0.00019178,2]
[388526534,1759233039755,-500.0,0.00019178,2]
[388526535,1759233039775,-500.0,0.00019178,2]
[388526536,1759233039786,-1530.49,0.00019178,2]
[388526537,1759233039796,-1449.32,0.00019178,2]
[388526538,1759233039808,-500.0,0.00019178,2]
[388526539,1759233039823,-1616.25,0.00019178,2]
[388526540,1759233039834,-500.0,0.00019178,2]
[388526541,1759233039847,-3247.47,0.00019178,2]
[388526542,1759233039856,-510.73506224,0.00019178,2]
[388526543,1759233039867,-1541.19,0.00019178,2]
[388526544,1759233039878,-2275.84,0.00019178,2]
[388526545,1759233039888,-1758.48,0.00019178,2]
[388526546,1759233039898,-381.8995981,0.00019178,2]
[388526547,1759233039908,-500.0,0.00019178,2]
[388526548,1759233039918,-570.84,0.00019178,2]
[388526549,1759233039928,-500.0,0.00019178,2]
[388526550,1759233039939,-2149.42,0.00019178,2]
[388526551,1759233039949,-500.0,0.00019178,2]
[388526552,1759233039959,-500.0,0.00019178,2]
[388526553,1759233039970,-2873.27,0.00019178,2]
[388526554,1759233039981,-500.0,0.00019178,2]
[388526555,1759233039991,-1356.22,0.00019178,2]
[388526556,1759233040001,-500.0,0.00019178,2]
[388526557,1759233040012,-1102.71,0.00019178,2]
[388526558,1759233040023,-500.0,0.00019178,2]
[388526559,1759233040034,-500.90907797,0.00019178,2]
[388526560,1759233040044,-1081.38,0.00019178,2]
[388526561,1759233040054,-519.53,0.00019178,2]
[388526562,1759233040064,-500.0,0.00019178,2]
[388526563,1759233040075,-500.0,0.00019178,2]
[388526564,1759233040085,-500.0,0.00019178,2]
[388526565,1759233040096,-1125.11,0.00019178,2]
[388526566,1759233040106,-500.0,0.00019178,2]
[388526567,1759233040116,-810.36,0.00019178,2]
[388526568,1759233040126,-500.0,0.00019178,2]
[388526569,1759233040137,-806.19,0.00019178,2]
[388526570,1759233040148,-621.24163705,0.00019178,2]
[388526571,1759233040162,-875.09,0.00019178,2]
[388526572,1759233040173,-500.0,0.00019178,2]
[388526573,1759233040183,-500.0,0.00019178,2]
[388526574,1759233040193,-500.0,0.00019178,2]
[388526575,1759233040204,-500.0,0.00019178,2]
[388526576,1759233040215,-2291.77,0.00019178,2]
[388526577,1759233040225,-500.0,0.00019178,2]
[388526578,1759233040241,-334.77036422,0.00019178,2]
[388526579,1759233040306,-165.22963578,0.00019178,2]
[388526580,1759233040316,-199.92022236,0.00019178,2]
[388526583,1759233041112,-815.98977764,0.00019178,2]
[388526584,1759233041123,-405.84970617,0.00019178,2]
[388526585,1759233041214,-94.15029383,0.00019178,2]
[388526586,1759233041224,-602.81,0.00019178,2]
[388526587,1759233041234,-500.0,0.00019178,2]
[388526588,1759233041244,-500.0,0.00019178,2]
[388526589,1759233041254,-500.0,0.00019178,2]
[388526590,1759233041266,-2092.5,0.00019178,2]
[388526591,1759233041276,-1353.08,0.00019178,2]
[388526592,1759233041288,-500.0,0.00019178,2]
[388526593,1759233041299,-500.0,0.00019178,2]
[388526594,1759233041309,-1076.0,0.00019178,2]
[388526595,1759233041319,-415.65279592,0.00019178,2]
[388526596,1759233041329,-500.0,0.00019178,2]
[388526597,1759233041340,-926.77,0.00019178,2]
[388526598,1759233041350,-500.0,0.00019178,2]
[388526599,1759233041359,-500.0,0.00019178,2]
[388526600,1759233041369,-500.0,0.00019178,2]
[388526601,1759233041380,-500.0,0.00019178,2]
[388526602,1759233041389,-500.0,0.00019178,2]
[388526603,1759233041399,-500.0,0.00019178,2]
[388526604,1759233041408,-500.0,0.00019178,2]
[388526605,1759233041419,-500.0,0.00019178,2]
[388526606,1759233041428,-500.0,0.00019178,2]
[388526607,1759233041440,-1473.05,0.00019178,2]
[388526608,1759233041450,-502.15,0.00019178,2]
[388526609,1759233041461,-737.01,0.00019178,2]
[388526610,1759233041471,-500.0,0.00019178,2]
[388526611,1759233041480,-500.0,0.00019178,2]
[388526612,1759233041491,-500.0,0.00019178,2]
[388526613,1759233041501,-500.0,0.00019178,2]
[388526614,1759233041511,-547.27,0.00019178,2]
[388526615,1759233041521,-623.02,0.00019178,2]
[388526616,1759233041533,-1767.49,0.00019178,2]
[388526617,1759233041542,-500.0,0.00019178,2]
[388526618,1759233041552,-500.0,0.00019178,2]
[388526619,1759233041561,-500.0,0.00019178,2]
[388526620,1759233041571,-1206.63,0.00019178,2]
[388526621,1759233041581,-3030.79,0.00019178,2]
[388526622,1759233041591,-684.22,0.00019178,2]
[388526623,1759233041601,-1124.0,0.00019178,2]
[388526624,1759233041611,-2922.16,0.00019178,2]
[388526625,1759233041622,-1004.78,0.00019178,2]
[388526626,1759233041632,-500.0,0.00019178,2]
[388526627,1759233041642,-999.2,0.00019178,2]
[388526628,1759233041652,-503.67,0.00019178,2]
[388526629,1759233041662,-508.31,0.00019178,2]
[388526630,1759233041671,-500.0,0.00019178,2]
[388526631,1759233041681,-500.0,0.00019178,2]
[388526632,1759233041691,-535.16,0.00019178,2]
[388526633,1759233041700,-500.0,0.00019178,2]
[388526634,1759233041710,-1122.89,0.00019178,2]
[388526635,1759233041735,-500.0,0.00019178,2]
[388526636,1759233041746,-709.65,0.00019178,2]
[388526637,1759233041758,-500.0,0.00019178,2]
[388526638,1759233041772,-589.98,0.00019178,2]
[388526639,1759233041784,-2046.28,0.00019178,2]
[388526640,1759233041794,-651.76,0.00019178,2]
[388526641,1759233041807,-557.46,0.00019178,2]
[388526642,1759233041817,-500.0,0.00019178,2]
[388526643,1759233041829,-991.75,0.00019178,2]
[388526644,1759233041841,-500.0,0.00019178,2]
[388526645,1759233041850,-500.0,0.00019178,2]
[388526646,1759233041860,-500.0,0.00019178,2]
[388526647,1759233041870,-500.0,0.00019178,2]
[388526648,1759233041880,-522.35,0.00019178,2]
[388526649,1759233041890,-500.0,0.00019178,2]
[388526650,1759233041900,-634.37,0.00019178,2]
[388526651,1759233041910,-1674.97,0.00019178,2]
[388526652,1759233041921,-500.0,0.00019178,2]
[388526653,1759233041931,-4652.68,0.00019178,2]
[388526654,1759233041942,-500.0,0.00019178,2]
[388526655,1759233041952,-500.0,0.00019178,2]
[388526656,1759233041963,-500.0,0.00019178,2]
[388526657,1759233041973,-648.63,0.00019178,2]
[388526658,1759233041983,-500.0,0.00019178,2]
[388526659,1759233041994,-485.33527077,0.00019178,2]
[388526660,1759233042004,-1096.79,0.00019178,2]
[388526661,1759233042014,-1186.52,0.00019178,2]
[388526662,1759233042024,-720.5,0.00019178,2]
[388526663,1759233042036,-500.0,0.00019178,2]
[388526664,1759233042046,-734.09,0.00019178,2]
[388526665,1759233042056,-721.62,0.00019178,2]
[388526666,1759233042066,-649.09,0.00019178,2]
[388526667,1759233042076,-1235.92,0.00019178,2]
[388526668,1759233042086,-500.0,0.00019178,2]
[388526669,1759233042096,-620.53,0.00019178,2]
[388526670,1759233042108,-571.69,0.00019178,2]
[388526671,1759233042123,-500.0,0.00019178,2]
[388526672,1759233042134,-817.46,0.00019178,2]
[388526673,1759233042145,-500.0,0.00019178,2]
[388526674,1759233042156,-1479.93,0.00019178,2]
[388526675,1759233042167,-500.0,0.00019178,2]
[388526676,1759233042178,-1884.09,0.00019178,2]
[388526677,1759233042188,-1579.33,0.00019178,2]
[388526678,1759233042199,-500.0,0.00019178,2]
[388526679,1759233042210,-1072.92,0.00019178,2]
[388526680,1759233042221,-500.0,0.00019178,2]
[388526681,1759233042232,-503.21250333,0.00019178,2]
[388526682,1759233042242,-500.0,0.00019178,2]
[388526683,1759233042252,-3182.64,0.00019178,2]
[388526684,1759233042263,-500.0,0.00019178,2]
[388526685,1759233042272,-500.0,0.00019178,2]
[388526686,1759233042283,-500.0,0.00019178,2]
[388526687,1759233042293,-935.35,0.00019178,2]
[388526688,1759233042304,-500.0,0.00019178,2]
[388526689,1759233042314,-550.3,0.00019178,2]
[388526690,1759233042324,-2680.5,0.00019178,2]
[388526691,1759233042334,-500.0,0.00019178,2]
[388526692,1759233042345,-500.0,0.00019178,2]
[388526693,1759233042358,-4153.97,0.00019178,2]
[388526694,1759233042371,-500.0,0.00019178,2]
[388526695,1759233042382,-500.0,0.00019178,2]
[388526696,1759233042393,-207.50463695,0.00019178,2]
[388526697,1759233042404,-1567.21,0.00019178,2]
[388526698,1759233042414,-1010.83,0.00019178,2]
[388526699,1759233042424,-622.71,0.00019178,2]
[388526700,1759233042434,-1214.25,0.00019178,2]
[388526701,1759233042444,-582.71,0.00019178,2]
[388526702,1759233042454,-500.0,0.00019178,2]
[388526703,1759233042465,-500.0,0.00019178,2]
[388526704,1759233042476,-912.37,0.00019178,2]
[388526705,1759233042486,-500.0,0.00019178,2]
[388526706,1759233042496,-905.89,0.00019178,2]
[388526707,1759233042512,-1427.62,0.00019178,2]
[388526708,1759233042524,-500.0,0.00019178,2]
[388526709,1759233042534,-500.0,0.00019178,2]
[388526710,1759233042545,-500.0,0.00019178,2]
[388526711,1759233042556,-500.0,0.00019178,2]
[388526712,1759233042567,-500.0,0.00019178,2]
[388526713,1759233042579,-994.34,0.00019178,2]
[388526714,1759233042589,-500.0,0.00019178,2]
[388526715,1759233042602,-683.54,0.00019178,2]
[388526716,1759233042613,-112.5944992,0.00019178,2]
[388526717,1759233042642,-387.4055008,0.00019178,2]
[388526718,1759233042653,-198.9944992,0.00019178,2]
[388526719,1759233042856,-301.0055008,0.00019178,2]
[388526720,1759233042867,-1566.40166607,0.00019178,2]
[388526721,1759233042879,-486.92833393,0.00019178,2]
[388526722,1759233042890,-772.08,0.00019178,2]
[388526723,1759233042900,-578.17,0.00019178,2]
[388526725,1759233042910,-500.0,0.00019178,2]
[388526726,1759233042925,-641.7,0.00019178,2]
[388526731,1759233043519,-500.0,0.00019178,2]
[388526732,1759233043538,-309.32877394,0.00019178,2]
[388526733,1759233043548,-340.43276096,0.00019178,2]
[388526734,1759233043561,-301.69522389,0.00019178,2]
[388526735,1759233043575,-500.0,0.00019178,2]
[388526736,1759233043588,-500.0,0.00019178,2]
[388526737,1759233043600,-500.0,0.00019178,2]
[388526738,1759233043612,-500.0,0.00019178,2]
[388526739,1759233043624,-500.0,0.00019178,2]
[388526740,1759233043634,-500.0,0.00019178,2]
[388526741,1759233043645,-500.0,0.00019178,2]
[388526742,1759233043656,-630.57316637,0.00019178,2]
[388526743,1759233043669,-2893.28683363,0.00019178,2]
[388526744,1759233043679,-702.84,0.00019178,2]
[388526745,1759233043689,-508.23,0.00019178,2]
[388526746,1759233043699,-500.0,0.00019178,2]
[388526747,1759233043709,-500.0,0.00019178,2]
[388526748,1759233043720,-4473.18,0.00019178,2]
[388526749,1759233043731,-500.0,0.00019178,2]
[388526750,1759233043742,-500.0,0.00019178,2]
[388526751,1759233043752,-500.0,0.00019178,2]
[388526752,1759233043763,-2842.52,0.00019178,2]
[388526753,1759233043777,-500.0,0.00019178,2]
[388526754,1759233043787,-1214.69941623,0.00019178,2]
[388526755,1759233043800,-197.24058377,0.00019178,2]
[388526756,1759233043812,-1292.87870636,0.00019178,2]
[388526757,1759233043829,-3656.67129364,0.00019178,2]
[388526758,1759233043840,-500.0,0.00019178,2]
[388526759,1759233043853,-453.86,0.00019178,2]
[388526760,1759233043865,-500.0,0.00019178,2]
[388526761,1759233043877,-500.0,0.00019178,2]
[388526762,1759233043888,-672.01,0.00019178,2]
[388526763,1759233043899,-500.0,0.00019178,2]
[388526764,1759233043910,-500.0,0.00019178,2]
[388526765,1759233043920,-500.0,0.00019178,2]
[388526766,1759233043931,-151.575418,0.00019178,2]
[388526767,1759233043942,-500.0,0.00019178,2]
[388526768,1759233043954,-500.0,0.00019178,2]
[388526769,1759233043964,-500.0,0.00019178,2]
[388526770,1759233043976,-5063.06,0.00019178,2]
[388526771,1759233043987,-500.0,0.00019178,2]
[388526772,1759233043997,-3306.51,0.00019178,2]
[388526773,1759233044008,-500.0,0.00019178,2]
[388526774,1759233044018,-1495.74,0.00019178,2]
[388526775,1759233044030,-500.0,0.00019178,2]
[388526776,1759233044041,-500.0,0.00019178,2]
[388526777,1759233044052,-500.83,0.00019178,2]
[388526778,1759233044062,-500.0,0.00019178,2]
[388526779,1759233044072,-1230.94,0.00019178,2]
[388526780,1759233044082,-500.0,0.00019178,2]
[388526781,1759233044092,-286.8393971,0.00019178,2]
[388526782,1759233044123,-1383.4906029,0.00019178,2]
[388526783,1759233044134,-457.02519891,0.00019178,2]
[388526784,1759233044167,-269.50480109,0.00019178,2]
[388526785,1759233044177,-500.0,0.00019178,2]
[388526786,1759233044189,-363.04473061,0.00019178,2]
[388526848,1759233047579,-317.78013319,0.00017469,2]
[388526851,1759233047591,-136.95526939,0.00019178,2]
[388526853,1759233047601,-906.55704802,0.00019178,2]
[388526858,1759233047644,-2779.31295198,0.00019178,2]
[388526860,1759233047654,-500.0,0.00019178,2]
[388526863,1759233047664,-500.0,0.00019178,2]
[388526864,1759233047675,-772.52596482,0.00019178,2]
[388526868,1759233047696,-417.5771852,0.00019178,2]
[388526870,1759233047708,-208.98684998,0.00019178,2]
[388526872,1759233047718,-500.0,0.00019178,2]
[388526874,1759233047727,-319.21314982,0.00019178,2]
[388526878,1759233047752,-180.78685018,0.00019178,2]
[388526880,1759233047763,-500.0,0.00019178,2]
[388526882,1759233047775,-500.0,0.00019178,2]
[388526884,1759233047785,-3126.22,0.00019178,2]
[388526886,1759233047794,-500.0,0.00019178,2]
[388526888,1759233047805,-500.0,0.00019178,2]
[388526890,1759233047815,-23.75079779,0.00019178,2]
[388526966,1759233054303,-151.575418,0.00017036,2]
[388526969,1759233061363,-151.575418,0.00017036,2]
[388526970,1759233061387,-196.849164,0.00017036,2]
[388526971,1759233068434,-453.86,0.00017036,2]
[388526972,1759233075521,-46.14,0.00017036,2]
[388526973,1759233075611,-407.72,0.00017036,2]
[388526975,1759233083601,-92.28,0.00017036,2]
[388526976,1759233083760,-315.44,0.00017036,2]
[388526977,1759233090066,-184.56,0.00017036,2]
[388526978,1759233090096,-538.64671036,0.00017036,2]
[388526979,1759233090125,-500.0,0.00017036,2]
[388526980,1759233090154,-346.22576541,0.00017036,2]
[388526981,1759233090181,-99.82957184,0.00017036,2]
[388526982,1759233090291,-318.14719842,0.00017036,2]
[388526983,1759233097191,-172.01,0.00017036,2]
[388526984,1759233097252,-327.99,0.00017036,2]
[388526985,1759233104892,-500.0,0.00017036,2]
[388526986,1759233111730,-500.0,0.00017036,2]
[388526987,1759233119274,-500.0,0.00017036,2]
[388526989,1759233127158,-500.0,0.00017036,2]
[388526990,1759233134427,-500.0,0.00017036,2]
[388526991,1759233141497,-500.0,0.00017036,2]
[388526998,1759233149053,-500.0,0.00017036,2]
[388527000,1759233177518,-195.0,0.00018057,2]
[388527001,1759233178134,-110.0,0.00018235,2]
[388527002,1759233184747,-66.62,0.00018235,2]
[388527003,1759233184807,-367.59,0.00018235,2]
[388527004,1759233220217,-500.0,0.0001704,2]
[388527005,1759233227405,-1230.94,0.0001704,2]
[388527006,1759233234358,-5.99,0.0001704,2]
[388527007,1759233234494,-488.02,0.0001704,2]
[388527008,1759233241473,-5063.06,0.0001704,2]
[388527009,1759233249249,-3306.51,0.0001704,2]
[388527010,1759233270813,-367.59,0.0001704,2]
[388527011,1759233277701,-195.0,0.00017039,2]
[388527012,1759233285844,161.58,9.082e-05,2]
[388527013,1759233351376,564.335,0.00026,120]
[388527058,1759234151789,-246.57116026,0.00016657,2]
[388527059,1759234154309,-159.08708783,0.00016657,2]
[388527060,1759234158345,-209.55175191,0.00016657,2]
[388527083,1759234232353,-150.0,0.00016806,2]
[388527085,1759234232363,-195.0,0.00016917,2]
[388527086,1759234232374,-1200.0,0.00017029,2]
[388527087,1759234232384,-151.0,0.0001703,2]
[388527088,1759234232394,-151.0,0.0001703,2]
[388527089,1759234232404,-151.0,0.0001703,2]
[388527090,1759234232414,-200.0,0.0001703,2]
[388527091,1759234232424,-151.0,0.0001703,2]
[388527092,1759234232434,-151.0,0.0001703,2]
[388527093,1759234232444,-151.0,0.0001703,2]
[388527094,1759234232454,-169.76617187,0.0001703,2]
[388527095,1759234232464,-500.0,0.0001703,2]
[388527096,1759234232474,-500.0,0.0001703,2]
[388527097,1759234232484,-500.0,0.0001703,2]
[388527098,1759234232494,-500.0,0.0001703,2]
[388527099,1759234232504,-286.41382813,0.0001703,2]
[388527100,1759234232521,-213.58617187,0.0001703,2]
[388527101,1759234232531,-500.0,0.0001703,2]
[388527102,1759234232541,-500.0,0.0001703,2]
[388527103,1759234232551,-500.0,0.0001703,2]
[388527104,1759234232562,-393.78623506,0.0001703,2]
[388527105,1759234232573,-438.0,0.0001703,2]
[388527106,1759234232618,-240.49376494,0.0001703,2]
[388527107,1759234232628,-209.50623506,0.00017037,2]
[388527108,1759234232641,-37.77491973,0.00017037,2]
[388527109,1759234232652,-500.0,0.00017038,2]
[388527110,1759234232677,-362.56938851,0.00017038,2]
[388527111,1759234232692,-137.43061149,0.00017038,2]
[388527112,1759234232704,-500.0,0.00017038,2]
[388527113,1759234232715,-500.0,0.00017038,2]
[388527114,1759234232726,-534.70125725,0.00017038,2]
[388527115,1759234232737,-194.062008,0.00017038,2]
[388527116,1759234232748,-357.0,0.00017039,2]
[388527117,1759234232759,-10000.0,0.00017039,9]
[388527119,1759234232770,-10000.0,0.00017039,9]
[388527121,1759234232781,-10000.0,0.00017039,9]
[388527122,1759234232792,-10000.0,0.00017039,9]
[388527123,1759234232803,-10000.0,0.00017039,9]